fUST/lending_fUST_20240419
["ID","MTS","AMOUNT","RATE_DAILY","PERIOD"]
[322911739,1713493859673,-500.0,0.00032328,6]
[322911740,1713493859682,-500.0,0.00032328,6]
[322911741,1713493859691,-151.80808341,0.00032346,7]
[322911742,1713493859703,-500.0,0.00032367,6]
[322911743,1713493859712,-500.0,0.00032367,6]
[322911744,1713493859721,-500.0,0.00032367,6]
[322911745,1713493859730,-500.0,0.00032367,6]
[322911746,1713493859740,-254.61958409,0.00032367,6]
[322911747,1713493859749,-500.0,0.00032367,6]
[322911748,1713493859759,-500.0,0.00032367,6]
[322911749,1713493859768,-500.0,0.00032367,6]
[322911750,1713493859778,-500.0,0.00032367,6]
[322911751,1713493859788,-500.0,0.00032367,6]
[322911752,1713493859797,-500.0,0.00032367,6]
[322911753,1713493859806,-279.71797577,0.00032421,4]
[322911754,1713493859816,-500.0,0.00032602,6]
[322911755,1713493859829,-896.14,0.00032602,6]
[322911756,1713493859839,-500.0,0.00032602,6]
[322911757,1713493859848,-664.86,0.00032602,6]
[322911758,1713493859859,-1183.16,0.00032602,6]
[322911759,1713493859868,-1087.01,0.00032602,6]
[322911760,1713493859877,-500.0,0.00032602,6]
[322911761,1713493859887,-500.0,0.00032602,6]
[322911762,1713493859896,-832.48,0.00032602,6]
[322911763,1713493859906,-500.0,0.00032602,6]
[322911764,1713493859915,-500.0,0.00032602,6]
[322911765,1713493859924,-1212.86,0.00032602,6]
[322911766,1713493859934,-500.0,0.00032602,6]
[322911767,1713493859943,-645.92258803,0.00032602,6]
[322911768,1713493859952,-2500.67,0.00032602,6]
[322911769,1713493859961,-914.71,0.00032602,6]
[322911770,1713493859971,-500.0,0.00032602,6]
[322911771,1713493859981,-903.56,0.00032602,6]
[322911772,1713493859990,-614.12,0.00032602,6]
[322911773,1713493860001,-500.0,0.00032602,6]
[322911774,1713493860011,-521.96,0.00032602,6]
[322911776,1713493860022,-301.9892099,0.00032602,6]
[322911778,1713493860032,-1949.07,0.00032602,6]
[322911781,1713493860042,-500.0,0.00032602,6]
[322911782,1713493860051,-500.0,0.00032602,6]
[322911785,1713493860119,-514.36177245,0.00032602,6]
[322911786,1713493860134,-547.25,0.00032602,6]
[322911787,1713493860144,-500.0,0.00032602,6]
[322911788,1713493860154,-1029.38,0.00032602,6]
[322911789,1713493860163,-1566.67,0.00032602,6]
[322911790,1713493860173,-500.0,0.00032602,6]
[322911791,1713493860183,-500.0,0.00032602,6]
[322911792,1713493860192,-500.0,0.00032602,6]
[322911793,1713493860202,-500.0,0.00032602,6]
[322911794,1713493860212,-500.0,0.00032602,6]
[322911795,1713493860221,-752.33,0.00032602,6]
[322911796,1713493860231,-1623.44,0.00032602,6]
[322911797,1713493860240,-500.0,0.00032602,6]
[322911798,1713493860251,-500.0,0.00032602,6]
[322911799,1713493860262,-500.0,0.00032602,6]
[322911800,1713493860273,-701.26,0.00032602,6]
[322911801,1713493860282,-500.0,0.00032602,6]
[322911802,1713493860292,-1637.79,0.00032602,6]
[322911803,1713493860301,-2083.33,0.00032602,6]
[322911804,1713493860310,-501.19584008,0.00032602,6]
[322911805,1713493860319,-500.0,0.00032602,6]
[322911806,1713493860335,-500.0,0.00032602,6]
[322911807,1713493860344,-500.0,0.00032602,6]
[322911808,1713493860353,-737.38,0.00032602,6]
[322911809,1713493860362,-25237.66,0.00032602,6]
[322911810,1713493860371,-1515.19,0.00032602,6]
[322911811,1713493860380,-500.0,0.00032602,6]
[322911813,1713493860389,-500.0,0.00032602,6]
[322911815,1713493860398,-500.0,0.00032602,6]
[322911816,1713493860408,-981.69,0.00032602,6]
[322911819,1713493860418,-954.56,0.00032602,6]
[322911820,1713493860427,-21078.95,0.00032602,6]
[322911822,1713493860437,-500.0,0.00032602,6]
[322911823,1713493860447,-500.0,0.00032602,6]
[322911825,1713493860457,-500.0,0.00032602,6]
[322911826,1713493860466,-500.0,0.00032602,6]
[322911827,1713493860476,-548.54,0.00032602,6]
[322911828,1713493860485,-500.0,0.00032602,6]
[322911829,1713493860494,-500.0,0.00032602,6]
[322911830,1713493860503,-2924.29,0.00032602,6]
[322911831,1713493860512,-701.18,0.00032602,6]
[322911832,1713493860522,-630.27,0.00032602,6]
[322911833,1713493860531,-1687.91,0.00032602,6]
[322911835,1713493860540,-926.53,0.00032602,6]
[322911837,1713493860549,-500.0,0.00032602,6]
[322911839,1713493860558,-947.82,0.00032602,6]
[322911841,1713493860568,-500.0,0.00032602,6]
[322911843,1713493860585,-500.0,0.00032602,6]
[322911845,1713493860593,-691.97,0.00032602,6]
[322911847,1713493860602,-500.0,0.00032602,6]
[322911849,1713493860612,-1252.32,0.00032602,6]
[322911851,1713493860620,-500.0,0.00032602,6]
[322911853,1713493860632,-500.0,0.00032602,6]
[322911855,1713493860641,-10240.71,0.00032602,6]
[322911857,1713493860650,-1056.82,0.00032602,6]
[322911859,1713493860659,-1486.98,0.00032602,6]
[322911861,1713493860669,-974.71,0.00032602,6]
[322911863,1713493860689,-7306.0,0.00032602,6]
[322911865,1713493860702,-500.0,0.00032602,6]
[322911866,1713493860715,-500.0,0.00032602,6]
[322911868,1713493860725,-574.09,0.00032602,6]
[322911870,1713493860735,-500.0,0.00032602,6]
[322911872,1713493860744,-591.76,0.00032602,6]
[322911874,1713493860754,-1126.35,0.00032602,6]
[322911876,1713493860764,-10851.06,0.00032602,6]
[322911878,1713493860774,-500.0,0.00032602,6]
[322911880,1713493860784,-500.0,0.00032602,6]
[322911882,1713493860794,-11158.69,0.00032602,6]
[322911884,1713493860804,-500.0,0.00032602,6]
[322911886,1713493860814,-500.0,0.00032602,6]
[322911888,1713493860828,-500.0,0.00032602,2]
[322911890,1713493860842,-500.0,0.00032602,6]
[322911893,1713493860852,-500.0,0.00032602,6]
[322911895,1713493860862,-500.0,0.00032641,6]
[322911896,1713493860870,-504.84664269,0.00032641,6]
[322911899,1713493860879,-500.0,0.00032641,6]
[322911901,1713493860889,-500.0,0.00032641,6]
[322911903,1713493860898,-500.0,0.00032641,6]
[322911905,1713493860907,-500.0,0.00032641,6]
[322911907,1713493860916,-500.0,0.00032641,6]
[322911909,1713493860925,-500.0,0.00032641,6]
[322911910,1713493860934,-500.0,0.00032641,6]
[322911913,1713493860944,-367.93768309,0.00032641,6]
[322911915,1713493860955,-500.0,0.00032648,2]
[322911917,1713493860965,-905.61665966,0.00032677,7]
[322911919,1713493860975,-427.19602984,0.00032679,7]
[322911921,1713493860985,-153.80856891,0.00032734,7]
[322911923,1713493860994,-427.19602984,0.00032776,7]
[322911924,1713493861003,-1262.89116117,0.00032835,3]
[322911925,1713493861012,-500.0,0.00032876,6]
[322911926,1713493861022,-896.14,0.00032876,6]
[322911927,1713493861031,-500.0,0.00032876,6]
[322911928,1713493861040,-664.86,0.00032876,6]
[322911929,1713493861049,-1183.16,0.00032876,6]
[322911930,1713493861058,-1087.01,0.00032876,6]
[322911931,1713493861067,-500.0,0.00032876,6]
[322911932,1713493861082,-369.7114801,0.00032876,6]
[322911933,1713493861092,-832.48,0.00032876,6]
[322911934,1713493861101,-500.0,0.00032876,6]
[322911935,1713493861110,-500.0,0.00032876,6]
[322911936,1713493861120,-1212.86,0.00032876,6]
[322911937,1713493861129,-500.0,0.00032876,6]
[322911938,1713493861139,-2500.67,0.00032876,6]
[322911939,1713493861148,-914.71,0.00032876,6]
[322911940,1713493861157,-538.09946904,0.00032876,6]
[322911941,1713493861166,-903.56,0.00032876,6]
[322911942,1713493861175,-614.12,0.00032876,6]
[322911943,1713493861185,-500.0,0.00032876,6]
[322911944,1713493861194,-521.96,0.00032876,6]
[322911945,1713493861203,-1949.07,0.00032876,6]
[322911946,1713493861212,-500.0,0.00032876,6]
[322911947,1713493861222,-500.0,0.00032876,6]
[322911948,1713493861231,-547.25,0.00032876,6]
[322911949,1713493861240,-500.0,0.00032876,6]
[322911950,1713493861250,-1029.38,0.00032876,6]
[322911951,1713493861259,-1566.67,0.00032876,6]
[322911952,1713493861268,-500.0,0.00032876,6]
[322911953,1713493861278,-500.0,0.00032876,6]
[322911954,1713493861287,-500.0,0.00032876,6]
[322911955,1713493861297,-500.0,0.00032876,6]
[322911956,1713493861306,-500.0,0.00032876,6]
[322911957,1713493861315,-752.33,0.00032876,6]
[322911958,1713493861327,-1623.44,0.00032876,6]
[322911959,1713493861341,-500.0,0.00032876,6]
[322911960,1713493861352,-500.0,0.00032876,6]
[322911961,1713493861361,-500.0,0.00032876,6]
[322911962,1713493861370,-701.26,0.00032876,6]
[322911963,1713493861380,-500.0,0.00032876,6]
[322911964,1713493861389,-1637.79,0.00032876,6]
[322911965,1713493861398,-2083.33,0.00032876,6]
[322911966,1713493861407,-500.0,0.00032876,6]
[322911967,1713493861416,-500.0,0.00032876,6]
[322911968,1713493861425,-500.0,0.00032876,6]
[322911969,1713493861434,-737.38,0.00032876,6]
[322911970,1713493861443,-25237.66,0.00032876,6]
[322911971,1713493861452,-1515.19,0.00032876,6]
[322911972,1713493861461,-500.0,0.00032876,6]
[322911973,1713493861470,-625.52915324,0.00032876,6]
[322911974,1713493861479,-500.0,0.00032876,6]
[322911975,1713493861487,-981.69,0.00032876,6]
[322911976,1713493861496,-954.56,0.00032876,6]
[322911977,1713493861505,-500.0,0.00032876,6]
[322911978,1713493861514,-500.0,0.00032876,6]
[322911979,1713493861523,-21078.95,0.00032876,6]
[322911980,1713493861532,-587.07678689,0.00032876,6]
[322911981,1713493861546,-500.0,0.00032876,6]
[322911982,1713493861590,-548.54,0.00032876,6]
[322911983,1713493861599,-500.0,0.00032876,6]
[322911984,1713493861609,-500.0,0.00032876,6]
[322911985,1713493861619,-2924.29,0.00032876,6]
[322911986,1713493861629,-701.18,0.00032876,6]
[322911987,1713493861639,-630.27,0.00032876,6]
[322911988,1713493861649,-1687.91,0.00032876,6]
[322911989,1713493861659,-926.53,0.00032876,6]
[322911990,1713493861670,-500.0,0.00032876,6]
[322911991,1713493861680,-947.82,0.00032876,6]
[322911992,1713493861690,-500.0,0.00032876,6]
[322911993,1713493861700,-500.0,0.00032876,6]
[322911994,1713493861712,-691.97,0.00032876,6]
[322911995,1713493861723,-500.0,0.00032876,6]
[322911996,1713493861734,-1252.32,0.00032876,6]
[322911997,1713493861744,-500.0,0.00032876,6]
[322911998,1713493861755,-500.0,0.00032876,6]
[322911999,1713493861767,-10240.71,0.00032876,6]
[322912000,1713493861777,-1056.82,0.00032876,6]
[322912001,1713493861787,-1486.98,0.00032876,6]
[322912002,1713493861797,-974.71,0.00032876,6]
[322912003,1713493861807,-7306.0,0.00032876,6]
[322912004,1713493861818,-500.0,0.00032876,6]
[322912005,1713493861831,-500.0,0.00032876,6]
[322912006,1713493861841,-574.09,0.00032876,6]
[322912007,1713493861850,-500.0,0.00032876,6]
[322912009,1713493861861,-591.76,0.00032876,6]
[322912011,1713493861871,-1126.35,0.00032876,6]
[322912013,1713493861881,-10851.06,0.00032876,6]
[322912015,1713493861890,-500.0,0.00032876,6]
[322912017,1713493861900,-364.06384664,0.00032876,6]
[322912019,1713493861911,-11158.69,0.00032876,6]
[322912020,1713493861920,-500.0,0.00032876,6]
[322912022,1713493861930,-500.0,0.00032876,6]
[322912023,1713493861940,-500.0,0.00032876,2]
[322912024,1713493861949,-500.0,0.00032876,6]
[322912025,1713493861959,-500.0,0.00032915,6]
[322912026,1713493861969,-500.0,0.00032915,6]
[322912027,1713493861980,-500.0,0.00032915,6]
[322912028,1713493861989,-500.0,0.00032915,6]
[322912029,1713493861999,-500.0,0.00032915,6]
[322912030,1713493862008,-637.01632787,0.00032915,6]
[322912031,1713493862018,-500.0,0.00032915,6]
[322912032,1713493862028,-500.0,0.00032915,6]
[322912033,1713493862038,-460.66889145,0.00032989,4]
[322912034,1713493862047,-162.24301786,0.00032998,4]
[322912035,1713493862056,-1952.61091509,0.00032998,4]
[322912036,1713493862065,-243.04607939,0.00032998,4]
[322912037,1713493862079,-176.28020598,0.00032998,4]
[322912039,1713493862089,-2334.95310335,0.00032999,4]
[322912040,1713493862099,-158.5021339,0.00032999,4]
[322912041,1713493862108,-7876.31451248,0.00032999,2]
[322912042,1713493862118,-500.0,0.00032999,6]
[322912043,1713493862128,-500.0,0.00032999,6]
[322912044,1713493862137,-500.0,0.00032999,6]
[322912045,1713493862147,-500.0,0.00032999,6]
[322912046,1713493862156,-500.0,0.00032999,6]
[322912047,1713493862167,-500.0,0.00032999,6]
[322912048,1713493862177,-500.0,0.00032999,6]
[322912049,1713493862187,-500.0,0.00032999,6]
[322912050,1713493862197,-513.06151119,0.00032999,6]
[322912051,1713493862207,-500.0,0.00032999,6]
[322912052,1713493862217,-526.34,0.00032999,6]
[322912053,1713493862228,-504.23537421,0.00032999,6]
[322912054,1713493862238,-500.0,0.00032999,6]
[322912055,1713493862249,-500.0,0.00032999,6]
[322912056,1713493862260,-1014.13242916,0.00032999,6]
[322912057,1713493862274,-500.0,0.00032999,6]
[322912058,1713493862286,-500.0,0.00032999,6]
[322912059,1713493862398,-502.25475365,0.00032999,6]
[322912060,1713493862409,-500.0,0.00032999,6]
[322912061,1713493862419,-506.70881724,0.00032999,6]
[322912062,1713493862430,-500.0,0.00032999,6]
[322912063,1713493862440,-510.27205363,0.00032999,6]
[322912064,1713493862450,-155.74954633,0.00032999,6]
[322912065,1713493862460,-500.0,0.00032999,6]
[322912066,1713493862473,-500.0,0.00032999,6]
[322912067,1713493862484,-500.0,0.00032999,6]
[322912068,1713493862495,-500.0,0.00032999,6]
[322912069,1713493862505,-500.0,0.00032999,6]
[322912070,1713493862515,-500.0,0.00032999,6]
[322912071,1713493862526,-500.0,0.00032999,6]
[322912072,1713493862537,-500.0,0.00032999,6]
[322912073,1713493862547,-505.37450893,0.00032999,6]
[322912074,1713493862558,-500.0,0.00032999,6]
[322912075,1713493862568,-620.9158731,0.00032999,6]
[322912076,1713493862583,-500.0,0.00032999,6]
[322912077,1713493862593,-500.0,0.00032999,6]
[322912078,1713493862603,-511.14488893,0.00032999,6]
[322912079,1713493862616,-505.49366823,0.00032999,6]
[322912080,1713493862625,-500.0,0.00032999,6]
[322912081,1713493862635,-501.94400943,0.00032999,6]
[322912082,1713493862644,-500.0,0.00032999,6]
[322912083,1713493862655,-500.0,0.00032999,6]
[322912084,1713493862666,-500.0,0.00032999,6]
[322912085,1713493862676,-500.0,0.00032999,6]
[322912086,1713493862686,-500.0,0.00032999,6]
[322912087,1713493862698,-500.0,0.00032999,6]
[322912088,1713493862710,-500.0,0.00032999,6]
[322912089,1713493862720,-377.4783578,0.00032999,6]
[322912090,1713493862730,-500.0,0.00032999,6]
[322912091,1713493862741,-640.57587644,0.00032999,6]
[322912092,1713493862752,-500.0,0.00032999,6]
[322912093,1713493862762,-500.0,0.00032999,6]
[322912094,1713493862771,-7709.12,0.00032999,6]
[322912095,1713493862782,-151.0,0.00032999,6]
[322912096,1713493862792,-500.0,0.00032999,6]
[322912097,1713493862802,-500.0,0.00032999,6]
[322912098,1713493862812,-500.0,0.00032999,6]
[322912099,1713493862820,-500.0,0.00032999,6]
[322912100,1713493862835,-500.0,0.00032999,6]
[322912101,1713493862845,-986.67,0.00032999,6]
[322912102,1713493862855,-500.0,0.00032999,6]
[322912103,1713493862865,-500.0,0.00032999,6]
[322912104,1713493862874,-500.57988908,0.00032999,6]
[322912105,1713493862885,-500.0,0.00032999,6]
[322912106,1713493862895,-1428.68,0.00032999,6]
[322912107,1713493862904,-500.0,0.00032999,6]
[322912108,1713493862914,-507.39060221,0.00032999,6]
[322912109,1713493862923,-500.0,0.00032999,6]
[322912110,1713493862933,-500.0,0.00032999,6]
[322912111,1713493862942,-8315.11,0.00032999,6]
[322912112,1713493862952,-979.86,0.00032999,6]
[322912113,1713493862962,-500.0,0.00032999,6]
[322912114,1713493862971,-500.0,0.00032999,6]
[322912115,1713493862981,-225.06058746,0.00032999,6]
[322912116,1713493862991,-10453.43,0.00032999,6]
[322912117,1713493863001,-500.0,0.00032999,6]
[322912118,1713493863011,-500.0,0.00032999,6]
[322912119,1713493863021,-503.11923874,0.00032999,6]
[322912120,1713493863031,-500.0,0.00032999,6]
[322912121,1713493863041,-500.0,0.00032999,6]
[322912122,1713493863050,-500.55024075,0.00032999,6]
[322912123,1713493863060,-500.0,0.00032999,6]
[322912124,1713493863070,-500.0,0.00032999,6]
[322912125,1713493863086,-189.50688469,0.00032999,6]
[322912126,1713493863096,-500.0,0.00032999,6]
[322912127,1713493863106,-500.0,0.00032999,6]
[322912128,1713493863116,-500.0,0.00032999,6]
[322912129,1713493863125,-500.0,0.00032999,6]
[322912130,1713493863133,-500.0,0.00032999,6]
[322912131,1713493863142,-500.0,0.00032999,6]
[322912132,1713493863151,-966.09,0.00032999,6]
[322912133,1713493863160,-507.11219918,0.00032999,6]
[322912134,1713493863168,-500.0,0.00032999,6]
[322912135,1713493863176,-1346.63,0.00032999,6]
[322912136,1713493863185,-500.0,0.00032999,6]
[322912137,1713493863194,-500.0,0.00032999,6]
[322912138,1713493863203,-260.60088914,0.00032999,6]
[322912139,1713493863213,-793.97,0.00032999,6]
[322912140,1713493863223,-500.0,0.00032999,6]
[322912141,1713493863232,-500.0,0.00032999,6]
[322912142,1713493863242,-160.33998115,0.00032999,2]
[322912143,1713493863251,-500.0,0.00032999,6]
[322912144,1713493863260,-500.0,0.00032999,6]
[322912145,1713493863270,-518.33017643,0.00032999,6]
[322912146,1713493863280,-566.32,0.00032999,6]
[322912147,1713493863291,-500.0,0.00032999,6]
[322912148,1713493863301,-500.0,0.00032999,6]
[322912149,1713493863311,-500.0,0.00032999,6]
[322912150,1713493863321,-500.0,0.00032999,6]
[322912151,1713493863337,-500.0,0.00032999,6]
[322912152,1713493863346,-500.0,0.00032999,6]
[322912153,1713493863355,-500.0,0.00032999,6]
[322912154,1713493863364,-117858.23298032,0.00033,2]
[322912155,1713493863373,-11030.55097749,0.00033,2]
[322912156,1713493863383,-1000.0,0.00033,2]
[322912157,1713493863392,-500.0,0.00033,2]
[322912158,1713493863401,-1012.51975408,0.00033,30]
[322912159,1713493863411,-2737.3,0.00033,120]
[322912160,1713493863421,-20000.0,0.00033,30]
[322912161,1713493863430,-300.0,0.00033,5]
[322912162,1713493863439,-950.0,0.00033,6]
[322912163,1713493863448,-2000.0,0.00033,6]
[322912164,1713493863458,-4337.19743473,0.00033,7]
[322912165,1713493863470,-296.17776332,0.00033,4]
[322912166,1713493863480,-4850.39115556,0.00033,5]
[322912167,1713493863490,-950.0,0.00033,6]
[322912168,1713493863500,-950.0,0.00033,6]
[322912169,1713493863510,-560.0,0.00033038,2]
[322912170,1713493863520,-400.0,0.0003312,35]
[322912171,1713493863530,-400.0,0.0003313,35]
[322912172,1713493863539,-186.0,0.00033135,2]
[322912173,1713493863549,-400.0,0.0003314,35]
[322912174,1713493863559,-500.0,0.00033149,6]
[322912175,1713493863570,-500.0,0.00033149,6]
[322912176,1713493863587,-500.0,0.00033149,6]
[322912177,1713493863598,-500.0,0.00033149,6]
[322912178,1713493863607,-500.0,0.00033149,6]
[322912179,1713493863617,-500.0,0.00033149,6]
[322912180,1713493863628,-500.0,0.00033149,6]
[322912181,1713493863639,-500.0,0.00033149,6]
[322912182,1713493863649,-500.0,0.00033149,6]
[322912183,1713493863658,-500.0,0.00033149,6]
[322912184,1713493863667,-500.0,0.00033149,6]
[322912185,1713493863687,-500.0,0.00033149,6]
[322912186,1713493863697,-500.0,0.00033149,6]
[322912187,1713493863707,-500.0,0.00033149,6]
[322912188,1713493863717,-500.0,0.00033149,6]
[322912189,1713493863726,-500.0,0.00033149,6]
[322912190,1713493863736,-464.30687493,0.00033149,6]
[322912191,1713493863745,-500.0,0.00033149,6]
[322912192,1713493863754,-500.0,0.00033149,6]
[322912193,1713493863763,-500.0,0.00033149,6]
[322912194,1713493863773,-500.0,0.00033149,6]
[322912196,1713493863782,-500.0,0.00033149,6]
[322912197,1713493863791,-500.0,0.00033149,6]
[322912198,1713493863800,-500.0,0.00033149,6]
[322912199,1713493863810,-500.0,0.00033149,6]
[322912200,1713493863819,-522.6514145,0.00033149,6]
[322912201,1713493863833,-500.0,0.00033149,6]
[322912202,1713493863842,-500.0,0.00033149,6]
[322912203,1713493863851,-500.0,0.00033149,6]
[322912204,1713493863861,-500.0,0.00033149,6]
[322912205,1713493863870,-500.0,0.00033149,6]
[322912206,1713493863880,-500.0,0.00033149,6]
[322912207,1713493863888,-500.0,0.00033149,6]
[322912208,1713493863898,-500.0,0.00033149,6]
[322912209,1713493863908,-500.0,0.00033149,6]
[322912210,1713493863917,-500.0,0.00033149,6]
[322912211,1713493863926,-333.73809323,0.00033149,6]
[322912212,1713493863936,-500.0,0.0003315,7]
[322912213,1713493863944,-500.0,0.0003315,7]
[322912214,1713493863953,-500.0,0.0003315,7]
[322912215,1713493863963,-500.0,0.0003315,7]
[322912216,1713493863972,-500.0,0.0003315,7]
[322912217,1713493863981,-500.0,0.0003315,7]
[322912218,1713493863990,-375.08124484,0.0003315,7]
[322912219,1713493864009,-500.0,0.0003315,7]
[322912220,1713493864022,-500.0,0.0003315,7]
[322912221,1713493864032,-500.0,0.0003315,7]
[322912222,1713493864042,-500.0,0.0003315,7]
[322912223,1713493864052,-606.95822692,0.0003315,7]
[322912224,1713493864062,-500.0,0.0003315,7]
[322912225,1713493864072,-503.91990682,0.0003315,7]
[322912226,1713493864090,-708.07,0.0003315,7]
[322912227,1713493864099,-500.0,0.0003315,7]
[322912228,1713493864109,-500.0,0.0003315,7]
[322912229,1713493864119,-500.0,0.0003315,7]
[322912230,1713493864129,-507.80996318,0.0003315,7]
[322912231,1713493864138,-500.0,0.0003315,7]
[322912232,1713493864147,-502.49703619,0.0003315,7]
[322912233,1713493864156,-624.41931626,0.0003315,7]
[322912234,1713493864166,-500.0,0.0003315,7]
[322912235,1713493864176,-500.0,0.0003315,7]
[322912236,1713493864186,-500.0,0.0003315,7]
[322912237,1713493864196,-511.42419852,0.0003315,7]
[322912238,1713493864205,-500.0,0.0003315,7]
[322912239,1713493864215,-500.0,0.0003315,7]
[322912240,1713493864225,-405.36013934,0.0003315,7]
[322912241,1713493864234,-500.0,0.0003315,7]
[322912242,1713493864245,-500.0,0.0003315,7]
[322912243,1713493864254,-500.0,0.0003315,7]
[322912244,1713493864265,-500.0,0.0003315,7]
[322912245,1713493864275,-500.0,0.0003315,7]
[322912246,1713493864285,-500.0,0.0003315,7]
[322912247,1713493864296,-500.0,0.0003315,7]
[322912248,1713493864306,-500.0,0.0003315,7]
[322912249,1713493864316,-506.35109438,0.0003315,7]
[322912250,1713493864334,-500.0,0.0003315,7]
[322912251,1713493864346,-500.0,0.0003315,7]
[322912252,1713493864356,-500.0,0.0003315,7]
[322912253,1713493864367,-500.0,0.0003315,7]
[322912254,1713493864377,-500.90828842,0.0003315,7]
[322912255,1713493864388,-500.0,0.0003315,6]
[322912256,1713493864398,-896.14,0.0003315,6]
[322912257,1713493864408,-500.0,0.0003315,6]
[322912258,1713493864418,-664.86,0.0003315,6]
[322912259,1713493864428,-1183.16,0.0003315,6]
[322912260,1713493864438,-1087.01,0.0003315,6]
[322912261,1713493864448,-310.61845144,0.0003315,6]
[322912262,1713493864458,-832.48,0.0003315,6]
[322912263,1713493864467,-500.0,0.0003315,6]
[322912264,1713493864477,-500.0,0.0003315,6]
[322912265,1713493864487,-1212.86,0.0003315,6]
[322912266,1713493864497,-500.0,0.0003315,6]
[322912267,1713493864507,-2500.67,0.0003315,6]
[322912268,1713493864517,-914.71,0.0003315,6]
[322912269,1713493864527,-903.56,0.0003315,6]
[322912270,1713493864537,-614.12,0.0003315,6]
[322912271,1713493864547,-521.96,0.0003315,6]
[322912272,1713493864556,-1949.07,0.0003315,6]
[322912273,1713493864566,-500.0,0.0003315,6]
[322912274,1713493864583,-500.0,0.0003315,6]
[322912275,1713493864594,-547.25,0.0003315,6]
[322912276,1713493864604,-500.0,0.0003315,6]
[322912277,1713493864618,-1029.38,0.0003315,6]
[322912278,1713493864628,-1566.67,0.0003315,6]
[322912279,1713493864638,-500.0,0.0003315,6]
[322912280,1713493864648,-500.0,0.0003315,6]
[322912281,1713493864659,-500.0,0.0003315,6]
[322912282,1713493864669,-492.95069929,0.0003315,6]
[322912283,1713493864678,-500.0,0.0003315,6]
[322912284,1713493864688,-752.33,0.0003315,6]
[322912285,1713493864699,-1623.44,0.0003315,6]
[322912286,1713493864714,-500.0,0.0003315,6]
[322912287,1713493864724,-500.0,0.0003315,6]
[322912288,1713493864733,-500.0,0.0003315,6]
[322912289,1713493864743,-701.26,0.0003315,6]
[322912290,1713493864753,-500.0,0.0003315,6]
[322912291,1713493864762,-1637.79,0.0003315,6]
[322912292,1713493864772,-2083.33,0.0003315,6]
[322912293,1713493864782,-500.0,0.0003315,6]
[322912294,1713493864791,-500.0,0.0003315,6]
[322912295,1713493864801,-500.0,0.0003315,6]
[322912296,1713493864811,-737.38,0.0003315,6]
[322912297,1713493864821,-25237.66,0.0003315,6]
[322912298,1713493864834,-1515.19,0.0003315,6]
[322912299,1713493864844,-500.0,0.0003315,6]
[322912300,1713493864853,-500.0,0.0003315,6]
[322912301,1713493864863,-981.69,0.0003315,6]
[322912302,1713493864872,-954.56,0.0003315,6]
[322912303,1713493864882,-500.0,0.0003315,6]
[322912304,1713493864893,-500.0,0.0003315,6]